lending/lending_fUSD_20240112
["ID","MTS","AMOUNT","RATE_DAILY","PERIOD"]
[311353792,1705067445620,-500.0,0.00022586,2]
[311353794,1705067445630,-500.0,0.00022586,2]
[311353796,1705067445640,-500.0,0.00022586,2]
[311353798,1705067445650,-500.0,0.00022586,2]
[311353800,1705067445661,-518.54,0.00022586,2]
[311353803,1705067445670,-577.35,0.00022586,2]
[311353805,1705067445680,-293.52479801,0.00022586,2]
[311353808,1705067445690,-2238.52,0.00022586,2]
[311353811,1705067445700,-506.82,0.00022587,2]
[311353813,1705067445710,-898.46,0.00022587,2]
[311353815,1705067445721,-689.65,0.00022587,2]
[311353818,1705067445732,-689.5,0.00022587,2]
[311353820,1705067445742,-544.38,0.00022587,2]
[311353822,1705067445756,-517.93,0.00022587,2]
[311353825,1705067445769,-500.0,0.00022587,2]
[311353827,1705067445779,-500.0,0.00022587,2]
[311353829,1705067445789,-603.88,0.00022587,2]
[311353831,1705067445798,-500.0,0.00022587,2]
[311353834,1705067445808,-807.14,0.00022587,2]
[311353836,1705067445818,-500.0,0.00022587,2]
[311353838,1705067445828,-500.0,0.00022587,2]
[311353840,1705067445838,-763.57,0.00022587,2]
[311353842,1705067445848,-500.0,0.00022587,2]
[311353844,1705067445858,-500.0,0.00022587,2]
[311353846,1705067445868,-500.0,0.00022587,2]
[311353848,1705067445878,-500.0,0.00022587,2]
[311353851,1705067445888,-881.83,0.00022587,2]
[311353853,1705067445899,-500.0,0.00022587,2]
[311353855,1705067445909,-500.0,0.00022587,2]
[311353857,1705067445918,-547.66,0.00022587,2]
[311353860,1705067445928,-717.02,0.00022587,2]
[311353862,1705067445938,-500.0,0.00022587,2]
[311353864,1705067445947,-500.0,0.00022587,2]
[311353866,1705067445957,-588.39,0.00022587,2]
[311353868,1705067445966,-500.0,0.00022588,2]
[311353870,1705067445976,-500.0,0.00022589,2]
[311353872,1705067445985,-500.0,0.00022589,2]
[311353874,1705067445996,-500.0,0.00022589,2]
[311353876,1705067446007,-500.0,0.00022589,2]
[311353878,1705067446016,-500.0,0.00022589,2]
[311353913,1705067446430,-500.0,0.00022589,2]
[311353917,1705067446455,-500.0,0.00022589,2]
[311353919,1705067446465,-500.0,0.00022589,2]
[311353921,1705067446476,-500.0,0.00022589,2]
[311353923,1705067446486,-500.0,0.00022589,2]
[311353925,1705067446496,-500.0,0.00022589,2]
[311353927,1705067446510,-500.0,0.00022589,2]
[311353929,1705067446519,-500.0,0.00022589,2]
[311353931,1705067446529,-500.0,0.00022589,2]
[311353933,1705067446538,-584.69971036,0.00022589,2]
[311353935,1705067446548,-500.0,0.00022589,2]
[311353937,1705067446560,-500.0,0.00022589,2]
[311353939,1705067446570,-500.0,0.00022589,2]
[311353941,1705067446579,-500.0,0.00022589,2]
[311353943,1705067446591,-500.0,0.00022589,2]
[311353945,1705067446601,-500.0,0.00022589,2]
[311353947,1705067446610,-500.0,0.00022589,2]
[311353949,1705067446619,-500.0,0.00022589,2]
[311353951,1705067446628,-500.0,0.00022589,2]
[311353953,1705067446637,-500.0,0.00022589,2]
[311353955,1705067446647,-500.0,0.00022589,2]
[311353957,1705067446656,-500.0,0.00022589,2]
[311353959,1705067446664,-500.0,0.00022589,2]
[311353961,1705067446674,-239.65567607,0.00022589,2]
[311353963,1705067446684,-500.0,0.00022589,2]
[311353965,1705067446693,-500.0,0.00022589,2]
[311353967,1705067446702,-500.0,0.00022589,2]
[311353969,1705067446711,-500.0,0.00022589,2]
[311353971,1705067446720,-500.0,0.00022589,2]
[311353973,1705067446730,-500.0,0.00022589,2]
[311353975,1705067446739,-500.0,0.00022589,2]
[311353977,1705067446748,-500.0,0.00022589,2]
[311353979,1705067446759,-4977.19999999,0.00022859,2]
[311353981,1705067446768,-37246.21831596,0.00022859,2]
[311353983,1705067446777,-500.0,0.00022859,2]
[311353985,1705067446786,-500.0,0.00022859,2]
[311353987,1705067446795,-500.0,0.00022859,2]
[311353989,1705067446804,-500.0,0.00022859,2]
[311353991,1705067446814,-500.0,0.00022859,2]
[311353993,1705067446823,-500.0,0.00022859,2]
[311353995,1705067446832,-500.0,0.00022859,2]
[311353997,1705067446841,-500.0,0.00022859,2]
[311353999,1705067446850,-647.06250212,0.00022859,2]
[311354001,1705067446859,-500.0,0.00022859,2]
[311354003,1705067446868,-500.0,0.00022859,2]
[311354005,1705067446877,-500.0,0.00022859,2]
[311354007,1705067446887,-500.0,0.00022859,2]
[311354009,1705067446897,-500.0,0.00022859,2]
[311354011,1705067446907,-500.0,0.00022859,2]
[311354013,1705067446916,-500.0,0.00022859,2]
[311354015,1705067446928,-500.0,0.00022859,2]
[311354017,1705067446938,-500.0,0.00022859,2]
[311354019,1705067446950,-500.0,0.00022859,2]
[311354021,1705067446961,-500.0,0.00022859,2]
[311354023,1705067446970,-500.0,0.00022859,2]
[311354026,1705067446980,-500.0,0.00022859,2]
[311354027,1705067446989,-500.0,0.00022859,2]
[311354029,1705067446999,-500.0,0.00022859,2]
[311354031,1705067447010,-500.0,0.00022859,2]
[311354032,1705067447020,-500.0,0.00022859,2]
[311354034,1705067447030,-500.0,0.00022859,2]
[311354036,1705067447039,-500.0,0.00022859,2]
[311354038,1705067447049,-330.92720849,0.00022859,2]
[311354040,1705067447058,-505.4,0.00022859,2]
[311354041,1705067447068,-500.0,0.00022859,2]
[311354043,1705067447078,-500.0,0.00022859,2]
[311354045,1705067447087,-500.0,0.00022859,2]
[311354047,1705067447097,-1250.65,0.00022859,2]
[311354048,1705067447108,-500.0,0.00022859,2]
[311354050,1705067447118,-500.0,0.00022859,2]
[311354052,1705067447128,-7981.48,0.00022859,2]
[311354054,1705067447138,-500.0,0.00022859,2]
[311354056,1705067447149,-500.0,0.00022859,2]
[311354057,1705067447158,-535.31,0.00022859,2]
[311354059,1705067447168,-1261.36,0.00022859,2]
[311354061,1705067447178,-500.0,0.00022859,2]
[311354063,1705067447187,-8984.16,0.00022859,2]
[311354065,1705067447197,-1671.94,0.00022859,2]
[311354066,1705067447207,-500.0,0.00022859,2]
[311354068,1705067447217,-3195.18,0.00022859,2]
[311354070,1705067447227,-320.0,0.00022859,2]
[311354072,1705067447237,-12299.66,0.00022859,2]
[311354074,1705067447246,-1110.57,0.00022859,2]
[311354076,1705067447259,-630.64,0.00022859,2]
[311354077,1705067447269,-500.0,0.00022859,2]
[311354079,1705067447279,-3123.71,0.00022859,2]
[311354081,1705067447289,-500.0,0.00022859,2]
[311354083,1705067447299,-500.0,0.00022859,2]
[311354084,1705067447309,-882.43,0.00022859,2]
[311354086,1705067447318,-2779.34,0.00022859,2]
[311354088,1705067447329,-500.0,0.00022859,2]
[311354090,1705067447338,-941.84,0.00022859,2]
[311354092,1705067447348,-703.36,0.00022859,2]
[311354093,1705067447358,-500.0,0.00022859,2]
[311354095,1705067447367,-580.21,0.00022859,2]
[311354097,1705067447377,-500.0,0.00022859,2]
[311354099,1705067447387,-22278.0,0.00022859,2]
[311354100,1705067447396,-500.0,0.00022859,2]
[311354102,1705067447406,-500.0,0.00022859,2]
[311354104,1705067447416,-2697.74,0.00022859,2]
[311354106,1705067447425,-2896.08,0.00022859,2]
[311354108,1705067447435,-1033.16,0.00022859,2]
[311354110,1705067447445,-500.0,0.00022859,2]
[311354111,1705067447455,-500.0,0.00022859,2]
[311354113,1705067447465,-1299.72,0.00022859,2]
[311354115,1705067447475,-1239.07,0.00022859,2]
[311354117,1705067447485,-349.730186,0.00022859,2]
[311354119,1705067447495,-994.29,0.00022859,2]
[311354121,1705067447507,-2369.38,0.00022859,2]
[311354123,1705067447516,-500.0,0.00022859,2]
[311354124,1705067447527,-500.0,0.00022859,2]
[311354126,1705067447536,-500.0,0.00022859,2]
[311354128,1705067447546,-508.66,0.00022859,2]
[311354130,1705067447556,-500.0,0.00022859,2]
[311354132,1705067447566,-500.0,0.00022859,2]
[311354134,1705067447575,-500.0,0.00022859,2]
[311354136,1705067447585,-500.0,0.00022859,2]
[311354138,1705067447595,-500.0,0.00022859,2]
[311354140,1705067447605,-6520.81,0.00022859,2]
[311354141,1705067447614,-500.0,0.00022859,2]
[311354143,1705067447623,-1237.49,0.00022859,2]
[311354145,1705067447633,-720.97,0.00022859,2]
[311354147,1705067447642,-4021.3,0.00022859,2]
[311354149,1705067447652,-500.0,0.00022859,2]
[311354151,1705067447661,-500.0,0.00022859,2]
[311354153,1705067447671,-500.0,0.00022859,2]
[311354155,1705067447680,-500.0,0.00022859,2]
[311354156,1705067447690,-500.0,0.00022859,5]
[311354158,1705067447699,-1358.89,0.00022859,2]
[311354160,1705067447709,-2605.83,0.00022859,2]
[311354162,1705067447719,-556.6,0.00022859,2]
[311354164,1705067447728,-1356.18,0.00022859,2]
[311354166,1705067447737,-500.0,0.00022859,2]
[311354168,1705067447746,-500.0,0.00022859,2]
[311354169,1705067447758,-500.0,0.00022859,2]
[311354171,1705067447768,-519.89,0.00022859,2]
[311354173,1705067447777,-2784.68,0.00022859,2]
[311354175,1705067447787,-709.85,0.00022859,2]
[311354177,1705067447796,-500.0,0.00022859,2]
[311354179,1705067447806,-500.0,0.00022859,2]
[311354181,1705067447815,-2294.01,0.00022859,2]
[311354183,1705067447825,-500.0,0.00022859,2]
[311354184,1705067447834,-974.42,0.00022859,2]
[311354186,1705067447844,-500.0,0.00022859,2]
[311354188,1705067447853,-500.0,0.00022859,2]
[311354190,1705067447863,-1586.88,0.00022859,2]
[311354192,1705067447872,-1607.34,0.00022859,2]
[311354194,1705067447882,-500.0,0.00022859,2]
[311354195,1705067447891,-500.0,0.00022859,2]
[311354197,1705067447901,-1000.0,0.00022859,2]
[311354199,1705067447910,-500.0,0.00022859,2]
[311354201,1705067447920,-500.0,0.00022859,2]
[311354203,1705067447930,-892.72,0.00022859,2]
[311354205,1705067447939,-1286.7,0.00022859,2]
[311354207,1705067447949,-500.0,0.00022859,2]
[311354208,1705067447959,-500.0,0.00022859,2]
[311354210,1705067447969,-500.0,0.00022859,2]
[311354212,1705067447980,-500.0,0.00022859,2]
[311354214,1705067447990,-500.0,0.00022859,2]
[311354216,1705067448000,-563.27,0.00022859,2]
[311354218,1705067448014,-500.0,0.00022859,2]
[311354220,1705067448027,-500.0,0.00022859,2]
[311354221,1705067448037,-1002.65,0.00022859,2]
[311354223,1705067448047,-834.9,0.00022859,2]
[311354225,1705067448057,-500.0,0.00022859,2]
[311354227,1705067448067,-500.0,0.00022859,2]
[311354229,1705067448077,-13676.69,0.00022859,2]
[311354231,1705067448088,-1317.28,0.00022859,2]
[311354232,1705067448097,-500.0,0.00022859,2]
[311354234,1705067448108,-500.0,0.00022859,2]
[311354235,1705067448119,-500.0,0.00022859,2]
[311354236,1705067448130,-500.0,0.00022859,2]
[311354237,1705067448139,-771.85,0.00022859,2]
[311354238,1705067448148,-500.0,0.00022859,2]
[311354239,1705067448158,-490.90197429,0.00022859,2]
[311354240,1705067448167,-1642.76,0.00022859,2]
[311354241,1705067448177,-601.82,0.00022859,2]
[311354242,1705067448186,-500.0,0.00022859,2]
[311354243,1705067448195,-500.0,0.00022859,2]
[311354244,1705067448204,-5698.97,0.00022859,2]
[311354245,1705067448215,-1051.05,0.00022859,2]
[311354247,1705067448225,-577.98,0.00022859,2]
[311354248,1705067448234,-852.82,0.00022859,2]
[311354250,1705067448244,-168.59726113,0.00022859,2]
[311354252,1705067448255,-697.59,0.00022859,2]
[311354254,1705067448266,-500.0,0.00022859,2]
[311354256,1705067448275,-500.0,0.00022859,2]
[311354258,1705067448285,-1233.03,0.00022859,2]
[311354261,1705067448299,-500.0,0.00022859,2]
[311354263,1705067448309,-500.0,0.00022859,2]
[311354265,1705067448319,-500.0,0.00022859,2]
[311354267,1705067448330,-2538.76,0.00022859,2]
[311354269,1705067448339,-1405.14,0.00022859,2]
[311354271,1705067448350,-328.28186595,0.00022859,2]
[311354273,1705067448359,-673.52,0.00022859,2]
[311354275,1705067448369,-2213.37,0.00022859,2]
[311354277,1705067448379,-500.0,0.00022859,2]
[311354279,1705067448388,-500.0,0.00022859,2]
[311354281,1705067448398,-14904.63,0.00022859,2]
[311354283,1705067448407,-1129.13,0.00022859,2]
[311354285,1705067448417,-1026.68,0.00022859,2]
[311354287,1705067448426,-500.0,0.00022859,2]
[311354289,1705067448435,-3836.53,0.00022859,2]
[311354292,1705067448444,-848.03,0.00022859,2]
[311354293,1705067448454,-500.0,0.00022859,2]
[311354296,1705067448463,-500.0,0.00022859,2]
[311354298,1705067448472,-500.0,0.00022859,2]
[311354300,1705067448482,-717.68,0.00022859,2]
[311354302,1705067448491,-1579.12,0.00022859,2]
[311354304,1705067448500,-500.0,0.00022859,2]
[311354306,1705067448511,-500.0,0.00022859,2]
[311354307,1705067448522,-500.0,0.00022859,2]
[311354310,1705067448531,-186.26455685,0.00022859,2]
[311354312,1705067448540,-500.0,0.00022859,2]
[311354314,1705067448549,-500.0,0.00022859,2]
[311354315,1705067448559,-1016.89,0.00022859,2]
[311354317,1705067448569,-1273.06,0.00022859,2]
[311354319,1705067448578,-500.0,0.00022859,2]
[311354322,1705067448587,-1990.06,0.00022859,2]
[311354324,1705067448596,-500.0,0.00022859,2]
[311354325,1705067448605,-500.0,0.00022859,2]
[311354328,1705067448615,-642.71,0.00022859,2]
[311354330,1705067448624,-1962.61,0.00022859,2]
[311354332,1705067448633,-3858.89,0.00022859,2]
[311354334,1705067448642,-1731.39,0.00022859,2]
[311354336,1705067448651,-830.92,0.00022859,2]
[311354338,1705067448660,-1448.83,0.00022859,2]
[311354340,1705067448670,-500.0,0.00022859,2]
[311354342,1705067448679,-500.0,0.00022859,2]
[311354344,1705067448689,-500.0,0.00022859,2]
[311354346,1705067448698,-899.04,0.00022859,2]
[311354348,1705067448707,-500.0,0.00022859,2]
[311354350,1705067448717,-673.69,0.00022859,2]
[311354352,1705067448727,-2683.93,0.00022859,2]
[311354354,1705067448739,-500.0,0.00022859,2]
[311354356,1705067448749,-500.0,0.00022859,2]
[311354358,1705067448761,-699.58,0.00022859,2]
[311354360,1705067448770,-2940.73,0.00022859,2]
[311354363,1705067448781,-4923.06,0.00022859,2]
[311354365,1705067448792,-500.0,0.00022859,2]
[311354367,1705067448805,-500.0,0.00022859,2]
[311354369,1705067448814,-500.0,0.00022859,2]
[311354371,1705067448823,-660.73,0.00022859,2]
[311354373,1705067448832,-1814.82,0.00022859,2]
[311354375,1705067448842,-500.0,0.00022859,2]
[311354377,1705067448853,-1795.65,0.00022859,2]
[311354379,1705067448864,-500.0,0.00022859,2]
[311354381,1705067448873,-500.0,0.00022859,2]
[311354383,1705067448883,-500.0,0.00022859,2]
[311354384,1705067448892,-500.0,0.00022859,2]
[311354385,1705067448902,-500.0,0.00022859,2]
[311354386,1705067448912,-2878.51,0.00022859,2]
[311354387,1705067448922,-788.12,0.00022859,2]
[311354388,1705067448931,-500.0,0.00022859,5]
[311354389,1705067448940,-234.99172506,0.00022859,2]
[311354390,1705067448951,-1029.85,0.00022859,2]
[311354391,1705067448960,-913.59,0.00022859,2]
[311354393,1705067448970,-500.0,0.0002286,2]
[311354395,1705067448979,-500.0,0.0002286,2]
[311354397,1705067448988,-500.0,0.0002286,2]
[311354399,1705067448997,-325.07800685,0.0002286,2]
[311354401,1705067449008,-500.0,0.0002286,2]
[311354403,1705067449017,-500.0,0.0002286,2]
[311354404,1705067449026,-500.0,0.0002286,2]
[311354406,1705067449035,-500.0,0.0002286,2]
[311354409,1705067449045,-500.0,0.0002286,2]
[311354411,1705067449055,-500.0,0.0002286,2]
[311354413,1705067449065,-500.0,0.0002286,2]
[311354415,1705067449076,-500.0,0.0002286,2]
[311354417,1705067449085,-500.0,0.0002286,2]
[311354419,1705067449095,-500.0,0.0002286,2]
[311354421,1705067449105,-500.0,0.0002286,2]
[311354423,1705067449115,-500.0,0.0002286,2]
[311354425,1705067449125,-500.0,0.0002286,2]
[311354427,1705067449137,-500.0,0.0002286,2]
[311354428,1705067449146,-500.0,0.0002286,2]
[311354429,1705067449156,-500.0,0.0002286,2]
[311354430,1705067449166,-466.01411217,0.0002286,2]
[311354431,1705067449176,-500.0,0.0002286,2]
[311354432,1705067449185,-500.0,0.0002286,2]
[311354433,1705067449194,-500.0,0.0002286,2]
[311354434,1705067449205,-500.0,0.0002286,2]
[311354435,1705067449215,-500.0,0.0002286,2]
[311354436,1705067449225,-500.0,0.0002286,2]
[311354437,1705067449234,-500.0,0.0002286,2]
[311354438,1705067449244,-500.0,0.0002286,2]
[311354439,1705067449255,-500.0,0.0002286,2]
[311354440,1705067449265,-500.0,0.0002286,2]
[311354441,1705067449275,-500.0,0.0002286,2]
[311354442,1705067449284,-500.0,0.0002286,2]
[311354443,1705067449294,-294.0811493,0.0002286,2]
[311354444,1705067449303,-500.0,0.0002286,2]
[311354445,1705067449313,-500.0,0.0002286,2]
[311354446,1705067449323,-500.0,0.0002286,2]
[311354448,1705067449332,-500.0,0.0002286,2]
[311354450,1705067449342,-500.0,0.0002286,2]
[311354452,1705067449353,-500.0,0.0002286,2]
[311354454,1705067449362,-500.0,0.0002286,2]
[311354456,1705067449372,-500.0,0.0002286,2]
[311354458,1705067449382,-500.0,0.0002286,2]
[311354460,1705067449391,-500.0,0.0002286,2]
[311354462,1705067449400,-500.0,0.0002286,2]
[311354464,1705067449410,-500.0,0.0002286,2]
[311354466,1705067449420,-500.0,0.0002286,2]
[311354468,1705067449429,-500.0,0.0002286,2]
[311354470,1705067449439,-500.0,0.0002286,2]
[311354472,1705067449451,-500.0,0.0002286,2]
[311354474,1705067449464,-500.0,0.0002286,2]
[311354475,1705067449478,-500.0,0.0002286,2]
[311354477,1705067449492,-500.0,0.0002286,2]
[311354479,1705067449505,-500.0,0.0002286,2]
[311354481,1705067449516,-500.0,0.0002286,2]
[311354483,1705067449528,-500.0,0.0002286,2]
[311354485,1705067449542,-500.0,0.0002286,2]
[311354487,1705067449554,-500.0,0.0002286,2]
[311354489,1705067449567,-500.0,0.0002286,2]
[311354492,1705067449581,-500.0,0.0002286,2]
[311354494,1705067449593,-500.0,0.0002286,2]
[311354497,1705067449607,-500.0,0.0002286,2]
[311354499,1705067449619,-500.0,0.0002286,2]
[311354501,1705067449630,-500.0,0.0002286,2]
[311354503,1705067449643,-500.0,0.0002286,2]
[311354506,1705067449655,-500.0,0.0002286,2]
[311354508,1705067449668,-500.0,0.0002286,2]
[311354510,1705067449681,-259.41858495,0.0002286,2]
[311354513,1705067449692,-500.0,0.0002286,2]
[311354515,1705067449705,-500.0,0.0002286,2]
[311354517,1705067449718,-500.0,0.0002286,2]
[311354519,1705067449730,-500.0,0.0002286,2]
[311354522,1705067449741,-500.0,0.0002286,2]
[311354524,1705067449751,-500.0,0.0002286,2]
[311354526,1705067449766,-500.0,0.0002286,2]
[311354528,1705067449780,-500.0,0.0002286,2]
[311354531,1705067449791,-500.0,0.0002286,2]
[311354533,1705067449805,-500.0,0.0002286,2]
[311354535,1705067449817,-500.0,0.0002286,2]
[311354538,1705067449829,-500.0,0.0002286,2]
[311354540,1705067449840,-500.0,0.0002286,2]
[311354542,1705067449852,-500.0,0.0002286,2]
[311354545,1705067449864,-500.0,0.0002286,2]
[311354547,1705067449875,-500.0,0.0002286,2]
[311354549,1705067449888,-500.0,0.0002286,2]
[311354552,1705067449901,-500.0,0.0002286,2]
[311354554,1705067449914,-500.0,0.0002286,2]
[311354556,1705067449926,-500.0,0.0002286,2]
[311354559,1705067449938,-500.0,0.0002286,2]
[311354561,1705067449948,-500.0,0.0002286,2]
[311354563,1705067449958,-500.0,0.0002286,2]
[311354565,1705067449968,-500.0,0.0002286,2]
[311354567,1705067449979,-500.0,0.0002286,2]
[311354570,1705067449991,-500.0,0.0002286,2]
[311354572,1705067450002,-500.0,0.0002286,2]
[311354574,1705067450013,-500.0,0.0002286,2]
[311354576,1705067450026,-500.0,0.0002286,2]
[311354579,1705067450038,-532.55,0.0002286,2]
[311354581,1705067450049,-500.0,0.0002286,2]
[311354583,1705067450060,-500.0,0.0002286,2]
[311354585,1705067450071,-252.42687427,0.0002286,2]
[311354587,1705067450084,-571.03,0.0002286,2]
[311354590,1705067450095,-500.0,0.0002286,2]
[311354592,1705067450107,-500.0,0.0002286,2]
[311354594,1705067450119,-500.0,0.0002286,2]
[311354596,1705067450133,-500.0,0.0002286,2]
[311354599,1705067450144,-500.0,0.0002286,2]
[311354601,1705067450156,-500.0,0.0002286,2]
[311354603,1705067450167,-500.0,0.0002286,2]
[311354605,1705067450178,-500.0,0.0002286,2]
[311354607,1705067450191,-500.0,0.0002286,2]
[311354610,1705067450203,-500.0,0.0002286,2]
[311354612,1705067450214,-500.0,0.0002286,2]
[311354614,1705067450226,-250.0,0.0002286,2]
[311354616,1705067450238,-500.0,0.0002286,2]
[311354618,1705067450249,-500.0,0.0002286,2]
[311354621,1705067450263,-500.0,0.0002286,2]
[311354623,1705067450275,-500.0,0.0002286,2]
[311354625,1705067450287,-500.0,0.0002286,2]
[311354627,1705067450300,-500.0,0.0002286,2]
[311354628,1705067450312,-500.0,0.0002286,2]
[311354629,1705067450324,-500.0,0.0002286,2]
[311354630,1705067450336,-500.0,0.0002286,2]
[311354631,1705067450349,-500.0,0.0002286,2]
[311354632,1705067450362,-500.0,0.0002286,2]
[311354633,1705067450375,-500.0,0.0002286,2]
[311354634,1705067450387,-500.0,0.0002286,2]
[311354636,1705067450399,-500.0,0.0002286,2]
[311354638,1705067450410,-500.0,0.0002286,2]
[311354641,1705067450422,-500.0,0.0002286,2]
[311354643,1705067450435,-500.0,0.0002286,2]
[311354645,1705067450447,-500.0,0.0002286,2]
[311354647,1705067450458,-617.06,0.0002286,2]
[311354650,1705067450470,-500.0,0.0002286,2]
[311354652,1705067450482,-500.03,0.0002286,2]
[311354654,1705067450494,-500.0,0.0002286,2]
[311354656,1705067450506,-900.49,0.0002286,2]
[311354658,1705067450518,-500.0,0.0002286,2]
[311354660,1705067450530,-500.0,0.0002286,2]
[311354662,1705067450542,-500.0,0.0002286,2]
[311354665,1705067450555,-500.0,0.0002286,2]
[311354667,1705067450566,-500.0,0.0002286,2]
[311354669,1705067450578,-500.0,0.0002286,2]
[311354671,1705067450590,-500.0,0.0002286,2]
[311354674,1705067450602,-500.0,0.0002286,2]
[311354676,1705067450614,-500.0,0.0002286,2]
[311354679,1705067450634,-500.0,0.0002286,2]
[311354681,1705067450646,-500.0,0.0002286,2]
[311354684,1705067450657,-580.22,0.0002286,2]
[311354686,1705067450669,-500.0,0.0002286,2]
[311354688,1705067450681,-500.0,0.0002286,2]
[311354690,1705067450692,-500.0,0.0002286,2]
[311354692,1705067450704,-500.0,0.0002286,2]
[311354695,1705067450715,-500.0,0.0002286,2]
[311354697,1705067450727,-500.0,0.0002286,2]
[311354699,1705067450739,-500.0,0.0002286,2]
[311354701,1705067450751,-500.0,0.0002286,2]
[311354704,1705067450763,-500.0,0.0002286,2]
[311354706,1705067450775,-500.0,0.0002286,2]
[311354708,1705067450786,-500.0,0.0002286,2]
[311354710,1705067450798,-500.0,0.0002286,2]
[311354713,1705067450810,-500.0,0.0002286,2]
[311354715,1705067450821,-500.0,0.0002286,2]
[311354717,1705067450832,-500.0,0.0002286,2]
[311354719,1705067450844,-500.0,0.0002286,2]
[311354721,1705067450855,-988.76,0.0002286,2]
[311354723,1705067450866,-500.0,0.0002286,2]
[311354725,1705067450878,-500.0,0.0002286,2]
[311354726,1705067450890,-500.0,0.0002286,2]
[311354727,1705067450902,-500.0,0.0002286,2]
[311354728,1705067450913,-536.8,0.0002286,2]
[311354729,1705067450925,-500.0,0.0002286,2]
[311354730,1705067450937,-676.74,0.0002286,2]
[311354731,1705067450949,-594.36,0.0002286,2]
[311354732,1705067450961,-500.0,0.0002286,2]
[311354733,1705067450972,-500.0,0.0002286,2]
[311354734,1705067450984,-500.0,0.0002286,2]
[311354735,1705067450996,-500.0,0.0002286,2]
[311354736,1705067451010,-572.67,0.0002286,2]
[311354737,1705067451021,-500.0,0.0002286,2]
[311354738,1705067451032,-293.4865504,0.0002286,2]
[311354739,1705067451044,-500.0,0.0002286,2]
[311354740,1705067451055,-500.0,0.0002286,2]
[311354741,1705067451067,-543.4,0.0002286,2]
[311354742,1705067451080,-500.0,0.0002286,2]
[311354743,1705067451092,-500.0,0.0002286,2]
[311354744,1705067451103,-500.0,0.0002286,2]
[311354745,1705067451116,-686.86,0.0002286,2]
[311354746,1705067451130,-426.13,0.0002286,2]
[311354747,1705067451143,-500.0,0.0002286,2]
[311354748,1705067451156,-500.0,0.0002286,2]
[311354749,1705067451168,-500.0,0.0002286,2]
[311354750,1705067451180,-513.03,0.0002286,2]
[311354751,1705067451193,-500.0,0.0002286,2]
[311354752,1705067451204,-717.1,0.0002286,2]
[311354753,1705067451216,-500.0,0.0002286,2]
[311354754,1705067451228,-915.79,0.0002286,2]
[311354755,1705067451239,-500.0,0.0002286,2]
[311354756,1705067451251,-628.12,0.0002286,2]
[311354757,1705067451264,-524.55774186,0.0002286,2]
[311354758,1705067451275,-500.0,0.0002286,2]
[311354759,1705067451287,-591.96047557,0.0002286,2]
[311354760,1705067451299,-500.0,0.0002286,2]